[Event "Late-Titled-Tuesday-Blitz-July-09-2024"]
[Site "Chess.com"]
[Date "2024.07.09"]
[Round "11"]
[White "Slovineanu"]
[Black "falzehope0"]
[Result "0-1"]
[WhiteElo "2499"]
[BlackElo "2464"]
[TimeControl "180+1"]
[EndTime "16:05:34 PDT"]
[Termination "falzehope0 won on time"]

1. d4 {[%clk 0:03:00.9]} 1... d6 {[%clk 0:02:56.1]} 2. e4 {[%clk 0:03:00.1]}
2... Nf6 {[%clk 0:02:56.4]} 3. Nc3 {[%clk 0:03:00.3]} 3... Nbd7 {[%clk
0:02:56.3]} 4. Nf3 {[%clk 0:03:00.3]} 4... e5 {[%clk 0:02:56.7]} 5. Bc4 {[%clk
0:03:00.7]} 5... Be7 {[%clk 0:02:56.9]} 6. O-O {[%clk 0:02:59.7]} 6... O-O
{[%clk 0:02:56.7]} 7. h3 {[%clk 0:02:59.8]} 7... c6 {[%clk 0:02:56.9]} 8. a4
{[%clk 0:02:59.5]} 8... Qc7 {[%clk 0:02:51.7]} 9. Re1 {[%clk 0:02:58.6]} 9... h6
{[%clk 0:02:51.9]} 10. a5 {[%clk 0:02:54.5]} 10... Re8 {[%clk 0:02:45.5]} 11.
Be3 {[%clk 0:02:42.7]} 11... Nf8 {[%clk 0:02:44.6]} 12. Qd3 {[%clk 0:02:36.6]}
12... Ng6 {[%clk 0:02:38.3]} 13. d5 {[%clk 0:02:31.1]} 13... c5 {[%clk
0:02:37.7]} 14. a6 {[%clk 0:02:25.6]} 14... b6 {[%clk 0:02:36.9]} 15. Bb5 {[%clk
0:02:25.1]} 15... Bd7 {[%clk 0:02:34.2]} 16. Nd2 {[%clk 0:02:24]} 16... Nh5
{[%clk 0:02:31]} 17. Nc4 {[%clk 0:02:11.7]} 17... Nhf4 {[%clk 0:02:28.1]} 18.
Bxf4 {[%clk 0:02:11.2]} 18... Nxf4 {[%clk 0:02:27.7]} 19. Qf3 {[%clk 0:02:04.5]}
19... Rf8 {[%clk 0:02:22]} 20. Ne3 {[%clk 0:01:44.9]} 20... g6 {[%clk
0:02:13.7]} 21. Kh2 {[%clk 0:01:42.8]} 21... Kh7 {[%clk 0:01:59.7]} 22. Bxd7
{[%clk 0:01:37]} 22... Qxd7 {[%clk 0:01:59.2]} 23. Ne2 {[%clk 0:01:17]} 23...
Nh5 {[%clk 0:01:54.3]} 24. g3 {[%clk 0:01:12.9]} 24... Ng7 {[%clk 0:01:53.5]}
25. Nc3 {[%clk 0:00:50.3]} 25... f5 {[%clk 0:01:45.4]} 26. Kg2 {[%clk
0:00:49.5]} 26... Bg5 {[%clk 0:01:41.4]} 27. exf5 {[%clk 0:00:46.5]} 27... gxf5
{[%clk 0:01:38.7]} 28. Nc4 {[%clk 0:00:39.1]} 28... Rg8 {[%clk 0:01:25.9]} 29.
Qe2 {[%clk 0:00:31.9]} 29... Raf8 {[%clk 0:01:20.2]} 30. Nd2 {[%clk 0:00:27]}
30... Bxd2 {[%clk 0:01:10.6]} 31. Qxd2 {[%clk 0:00:27.1]} 31... f4 {[%clk
0:01:09.8]} 32. Qd3+ {[%clk 0:00:25.6]} 32... Nf5 {[%clk 0:00:58.3]} 33. g4
{[%clk 0:00:20.5]} 33... Kh8 {[%clk 0:00:57.6]} 34. f3 {[%clk 0:00:19.1]} 34...
Ne3+ {[%clk 0:00:54.4]} 35. Kf2 {[%clk 0:00:16.7]} 35... c4 {[%clk 0:00:45.9]}
36. Qe4 {[%clk 0:00:14.5]} 36... Qe7 {[%clk 0:00:44.6]} 37. Rh1 {[%clk
0:00:12.4]} 37... Qh4+ {[%clk 0:00:43.8]} 38. Ke2 {[%clk 0:00:12.6]} 38... Qg3
{[%clk 0:00:36.7]} 39. Rag1 {[%clk 0:00:13]} 39... Qh4 {[%clk 0:00:34.3]} 40.
Nd1 {[%clk 0:00:12.3]} 40... Nxc2 {[%clk 0:00:32]} 41. Qxc2 {[%clk 0:00:11.1]}
41... e4 {[%clk 0:00:29.5]} 42. fxe4 {[%clk 0:00:11.2]} 42... f3+ {[%clk
0:00:27.7]} 43. Kd2 {[%clk 0:00:11.7]} 43... f2 {[%clk 0:00:19.3]} 44. Rf1
{[%clk 0:00:11.4]} 44... Qg5+ {[%clk 0:00:19]} 45. Kc3 {[%clk 0:00:11.6]} 45...
Rf3+ {[%clk 0:00:16.7]} 46. Kb4 {[%clk 0:00:11.5]} 46... Qd8 {[%clk 0:00:15.1]}
47. Nc3 {[%clk 0:00:09.7]} 47... Qc7 {[%clk 0:00:15.1]} 48. Rxf2 {[%clk
0:00:08.6]} 48... Qc5+ {[%clk 0:00:14.9]} 49. Ka4 {[%clk 0:00:08.9]} 49... Rxf2
{[%clk 0:00:15]} 0-1

[Event "Late-Titled-Tuesday-Blitz-July-09-2024"]
[Site "Chess.com"]
[Date "2024.07.09"]
[Round "11"]
[White "Sek_Konstantin"]
[Black "rpragchess"]
[Result "1-0"]
[WhiteElo "2754"]
[BlackElo "3064"]
[TimeControl "180+1"]
[EndTime "16:05:35 PDT"]
[Termination "Sek_Konstantin won by resignation"]

1. e4 {[%clk 0:03:00.9]} 1... d6 {[%clk 0:02:57.5]} 2. d4 {[%clk 0:03:00.3]}
2... Nf6 {[%clk 0:02:58]} 3. Nc3 {[%clk 0:03:00.6]} 3... g6 {[%clk 0:02:58.6]}
4. g3 {[%clk 0:03:00.7]} 4... Bg7 {[%clk 0:02:59.2]} 5. Bg2 {[%clk 0:03:00.9]}
5... Nc6 {[%clk 0:02:59.3]} 6. Nge2 {[%clk 0:03:00.8]} 6... O-O {[%clk 0:03:00]}
7. O-O {[%clk 0:03:00.1]} 7... e5 {[%clk 0:03:00.6]} 8. dxe5 {[%clk 0:02:56.6]}
8... Nxe5 {[%clk 0:03:00.7]} 9. h3 {[%clk 0:02:55.9]} 9... Re8 {[%clk
0:03:00.4]} 10. f4 {[%clk 0:02:54.8]} 10... Ned7 {[%clk 0:02:59]} 11. g4 {[%clk
0:02:53.8]} 11... Nc5 {[%clk 0:02:58.1]} 12. Ng3 {[%clk 0:02:54]} 12... h6
{[%clk 0:02:55.5]} 13. Be3 {[%clk 0:02:49.3]} 13... Qe7 {[%clk 0:02:55.2]} 14.
Re1 {[%clk 0:02:40.5]} 14... Bd7 {[%clk 0:02:50.6]} 15. Qd2 {[%clk 0:02:36.4]}
15... Rad8 {[%clk 0:02:45.2]} 16. Qf2 {[%clk 0:02:32.8]} 16... b6 {[%clk
0:02:34.6]} 17. Rad1 {[%clk 0:02:23.5]} 17... Qf8 {[%clk 0:02:32.6]} 18. b4
{[%clk 0:02:18]} 18... Na4 {[%clk 0:02:31.4]} 19. Nxa4 {[%clk 0:02:11.8]} 19...
Bxa4 {[%clk 0:02:32.3]} 20. Rd2 {[%clk 0:02:04.1]} 20... Rd7 {[%clk 0:02:20]}
21. Bd4 {[%clk 0:01:53.9]} 21... Rde7 {[%clk 0:02:19.4]} 22. Rde2 {[%clk
0:01:51.5]} 22... Bb5 {[%clk 0:02:16.8]} 23. Re3 {[%clk 0:01:31.2]} 23... Bc4
{[%clk 0:02:16.2]} 24. a3 {[%clk 0:01:18.8]} 24... Nd7 {[%clk 0:01:46.4]} 25.
Bxg7 {[%clk 0:01:14.5]} 25... Qxg7 {[%clk 0:01:47.3]} 26. h4 {[%clk 0:01:01.7]}
26... Nf6 {[%clk 0:01:25.9]} 27. Bf3 {[%clk 0:01:00.9]} 27... d5 {[%clk
0:01:19.9]} 28. e5 {[%clk 0:00:56.9]} 28... d4 {[%clk 0:01:19.7]} 29. R3e2
{[%clk 0:00:44.9]} 29... Bxe2 {[%clk 0:00:59.6]} 30. exf6 {[%clk 0:00:40.8]}
30... Qxf6 {[%clk 0:01:00.5]} 31. Rxe2 {[%clk 0:00:38.7]} 31... Qxf4 {[%clk
0:00:57.4]} 32. Kg2 {[%clk 0:00:25.8]} 32... Re3 {[%clk 0:00:56.3]} 33. Rxe3
{[%clk 0:00:19.2]} 33... Rxe3 {[%clk 0:00:57.2]} 34. Nf1 {[%clk 0:00:14.4]}
34... Rxa3 {[%clk 0:00:56.5]} 35. Qe2 {[%clk 0:00:14.7]} 35... Kg7 {[%clk
0:00:56.3]} 36. h5 {[%clk 0:00:13.9]} 36... gxh5 {[%clk 0:00:49.7]} 37. Ng3
{[%clk 0:00:12.9]} 37... Qe3 {[%clk 0:00:40.6]} 38. Nf5+ {[%clk 0:00:12.8]}
38... Kf6 {[%clk 0:00:24.4]} 39. Nxe3 {[%clk 0:00:13.4]} 39... Rxe3 {[%clk
0:00:25.3]} 40. Qd2 {[%clk 0:00:13.6]} 40... Ke5 {[%clk 0:00:25.1]} 41. gxh5
{[%clk 0:00:13.1]} 41... f5 {[%clk 0:00:24.1]} 42. Qf2 {[%clk 0:00:13.2]} 42...
f4 {[%clk 0:00:21.2]} 43. Qh4 {[%clk 0:00:13.2]} 43... d3 {[%clk 0:00:19.9]} 44.
Qe7+ {[%clk 0:00:12.9]} 44... Kd4 {[%clk 0:00:19.9]} 45. Qd7+ {[%clk 0:00:13]}
45... Kc3 {[%clk 0:00:19.7]} 46. Qxc7+ {[%clk 0:00:11.9]} 46... Kxb4 {[%clk
0:00:20.1]} 47. cxd3 {[%clk 0:00:12.3]} 47... Rxd3 {[%clk 0:00:20.3]} 48. Qxf4+
{[%clk 0:00:12.5]} 48... Kc3 {[%clk 0:00:20.9]} 49. Qxh6 {[%clk 0:00:12.8]}
49... a5 {[%clk 0:00:21.2]} 50. Qf6+ {[%clk 0:00:12.6]} 50... Kd2 {[%clk
0:00:20.1]} 51. h6 {[%clk 0:00:12.8]} 51... Rd6 {[%clk 0:00:14.7]} 1-0

[Event "Late-Titled-Tuesday-Blitz-July-09-2024"]
[Site "Chess.com"]
[Date "2024.07.09"]
[Round "11"]
[White "toninhojit"]
[Black "Horokoskii"]
[Result "1-0"]
[WhiteElo "2496"]
[BlackElo "2159"]
[TimeControl "180+1"]
[EndTime "16:05:35 PDT"]
[Termination "toninhojit won on time"]

1. e4 {[%clk 0:03:00.9]} 1... c5 {[%clk 0:02:57.7]} 2. Nf3 {[%clk 0:03:01]} 2...
d6 {[%clk 0:02:57.3]} 3. c3 {[%clk 0:03:01.3]} 3... Nc6 {[%clk 0:02:53.9]} 4. d4
{[%clk 0:03:00.5]} 4... cxd4 {[%clk 0:02:54.2]} 5. cxd4 {[%clk 0:03:01.4]} 5...
g6 {[%clk 0:02:52.5]} 6. d5 {[%clk 0:03:01]} 6... Nb8 {[%clk 0:02:50.5]} 7. Nc3
{[%clk 0:02:59.3]} 7... Bg7 {[%clk 0:02:50.1]} 8. Be3 {[%clk 0:03:00]} 8... Nf6
{[%clk 0:02:46.3]} 9. h3 {[%clk 0:03:00.5]} 9... O-O {[%clk 0:02:45.9]} 10. Qd2
{[%clk 0:03:01.1]} 10... Qa5 {[%clk 0:02:38.6]} 11. Bd3 {[%clk 0:03:00.6]} 11...
Bd7 {[%clk 0:02:33.8]} 12. O-O {[%clk 0:02:59.9]} 12... Na6 {[%clk 0:02:32.3]}
13. a3 {[%clk 0:02:58.9]} 13... Rac8 {[%clk 0:02:30.2]} 14. b4 {[%clk
0:02:57.5]} 14... Qc7 {[%clk 0:02:28.3]} 15. Rac1 {[%clk 0:02:57.6]} 15... Qb8
{[%clk 0:02:26.3]} 16. Rc2 {[%clk 0:02:48]} 16... Rc7 {[%clk 0:02:04.6]} 17.
Rfc1 {[%clk 0:02:47.5]} 17... Rfc8 {[%clk 0:02:05.1]} 18. Nd4 {[%clk 0:02:47.3]}
18... Ne8 {[%clk 0:01:56.6]} 19. Ncb5 {[%clk 0:02:30.2]} 19... Bxb5 {[%clk
0:01:55.8]} 20. Nxb5 {[%clk 0:02:27.6]} 20... Rxc2 {[%clk 0:01:55]} 21. Rxc2
{[%clk 0:02:28.5]} 21... Rxc2 {[%clk 0:01:54.9]} 22. Qxc2 {[%clk 0:02:29.4]}
22... Nac7 {[%clk 0:01:51.3]} 23. Bxa7 {[%clk 0:02:24.7]} 23... Qa8 {[%clk
0:01:41.9]} 24. Nxc7 {[%clk 0:02:20]} 24... Nxc7 {[%clk 0:01:41.4]} 25. Bb6
{[%clk 0:02:14.2]} 25... Ne8 {[%clk 0:01:38.8]} 26. a4 {[%clk 0:02:12.9]} 26...
Nf6 {[%clk 0:01:21.4]} 27. a5 {[%clk 0:02:11.1]} 27... Nd7 {[%clk 0:01:21.9]}
28. Be3 {[%clk 0:02:05.9]} 28... Ne5 {[%clk 0:01:20.9]} 29. Be2 {[%clk
0:02:06.4]} 29... Qe8 {[%clk 0:01:16.8]} 30. f4 {[%clk 0:02:04.9]} 30... Nd7
{[%clk 0:01:12.5]} 31. Bb5 {[%clk 0:01:59.5]} 31... Qd8 {[%clk 0:01:10.7]} 32.
Qc4 {[%clk 0:01:56.4]} 32... h5 {[%clk 0:01:02.5]} 33. Kh1 {[%clk 0:01:54.9]}
33... h4 {[%clk 0:00:58.2]} 34. Ba4 {[%clk 0:01:51]} 34... Nf6 {[%clk
0:00:57.4]} 35. Bb6 {[%clk 0:01:50.7]} 35... Qb8 {[%clk 0:00:51.6]} 36. Bc2
{[%clk 0:01:40.2]} 36... Nh5 {[%clk 0:00:50.1]} 37. Qc7 {[%clk 0:01:40.3]} 37...
Qe8 {[%clk 0:00:48.2]} 38. Qd8 {[%clk 0:01:37.7]} 38... Qxd8 {[%clk 0:00:42]}
39. Bxd8 {[%clk 0:01:38.6]} 39... Bc3 {[%clk 0:00:35.7]} 40. b5 {[%clk
0:01:38.6]} 40... Ng3+ {[%clk 0:00:33.8]} 41. Kh2 {[%clk 0:01:35.3]} 41... Ne2
{[%clk 0:00:33.7]} 42. a6 {[%clk 0:01:25.5]} 42... bxa6 {[%clk 0:00:30.4]} 43.
b6 {[%clk 0:01:19.8]} 43... Bd4 {[%clk 0:00:25.9]} 44. b7 {[%clk 0:01:17.6]}
44... Ba7 {[%clk 0:00:26.3]} 45. Bc7 {[%clk 0:01:13.9]} 45... Nxf4 {[%clk
0:00:26]} 46. b8=Q+ {[%clk 0:01:06.7]} 46... Bxb8 {[%clk 0:00:24.4]} 47. Bxb8
{[%clk 0:01:07.6]} 47... Ne2 {[%clk 0:00:17.4]} 48. Bd3 {[%clk 0:01:03.6]} 48...
Nf4 {[%clk 0:00:12.9]} 49. Bxa6 {[%clk 0:01:01.8]} 49... f5 {[%clk 0:00:11.4]}
50. e5 {[%clk 0:00:55]} 50... dxe5 {[%clk 0:00:08.6]} 51. Bxe5 {[%clk
0:00:54.4]} 51... Nh5 {[%clk 0:00:05.5]} 52. Bc4 {[%clk 0:00:53.1]} 52... Kf8
{[%clk 0:00:04.9]} 53. Bd4 {[%clk 0:00:48]} 53... Ng3 {[%clk 0:00:02.7]} 54. Bf2
{[%clk 0:00:46.3]} 54... Ne4 {[%clk 0:00:02.6]} 55. Bxh4 {[%clk 0:00:45.1]}
55... g5 {[%clk 0:00:02.6]} 56. Be1 {[%clk 0:00:44.8]} 56... f4 {[%clk
0:00:02.5]} 57. Bd3 {[%clk 0:00:43.3]} 57... Nd6 {[%clk 0:00:01.5]} 58. Bb4
{[%clk 0:00:43.6]} 1-0

[Event "Late-Titled-Tuesday-Blitz-July-09-2024"]
[Site "Chess.com"]
[Date "2024.07.09"]
[Round "11"]
[White "Brown_Mamba24"]
[Black "saikrishnaReturns"]
[Result "1-0"]
[WhiteElo "2577"]
[BlackElo "2783"]
[TimeControl "180+1"]
[EndTime "16:05:37 PDT"]
[Termination "Brown_Mamba24 won by checkmate"]

1. d4 {[%clk 0:03:00.9]} 1... g6 {[%clk 0:02:58.2]} 2. c4 {[%clk 0:03:00.8]}
2... Bg7 {[%clk 0:02:58.7]} 3. Nc3 {[%clk 0:02:56.1]} 3... d6 {[%clk 0:02:58.8]}
4. e4 {[%clk 0:02:55.6]} 4... Nd7 {[%clk 0:02:59.4]} 5. Be3 {[%clk 0:02:55.2]}
5... e5 {[%clk 0:02:59.6]} 6. d5 {[%clk 0:02:54.8]} 6... Ne7 {[%clk 0:02:58.1]}
7. Qd2 {[%clk 0:02:52.6]} 7... f5 {[%clk 0:02:56.6]} 8. Bh6 {[%clk 0:02:51.3]}
8... Bf6 {[%clk 0:02:56.6]} 9. Bg5 {[%clk 0:02:51]} 9... Bg7 {[%clk 0:02:56.9]}
10. Bh6 {[%clk 0:02:51.2]} 10... O-O {[%clk 0:02:53.7]} 11. h4 {[%clk
0:02:46.5]} 11... f4 {[%clk 0:02:53.5]} 12. Bxg7 {[%clk 0:02:43.6]} 12... Kxg7
{[%clk 0:02:54.4]} 13. h5 {[%clk 0:02:43.2]} 13... g5 {[%clk 0:02:54.1]} 14. h6+
{[%clk 0:02:38.9]} 14... Kg6 {[%clk 0:02:48.5]} 15. g3 {[%clk 0:02:26.4]} 15...
Ng8 {[%clk 0:02:46.8]} 16. gxf4 {[%clk 0:02:23.5]} 16... exf4 {[%clk 0:02:47.7]}
17. Qe2 {[%clk 0:02:12]} 17... Ne5 {[%clk 0:02:44.2]} 18. Qh5+ {[%clk
0:02:09.4]} 18... Kf6 {[%clk 0:02:44.4]} 19. Nh3 {[%clk 0:01:43.3]} 19... Bxh3
{[%clk 0:02:41.4]} 20. Bxh3 {[%clk 0:01:38.6]} 20... Qe8 {[%clk 0:02:39.6]} 21.
Qe2 {[%clk 0:01:35.2]} 21... f3 {[%clk 0:02:27.8]} 22. Qe3 {[%clk 0:01:31.8]}
22... Qh5 {[%clk 0:02:18.8]} 23. O-O-O {[%clk 0:01:24.7]} 23... g4 {[%clk
0:02:17.8]} 24. Bxg4 {[%clk 0:01:13.5]} 24... Qg5 {[%clk 0:02:11.3]} 25. Qxg5+
{[%clk 0:01:03.6]} 25... Kxg5 {[%clk 0:02:12.2]} 26. Bf5 {[%clk 0:00:59.6]}
26... Nxc4 {[%clk 0:01:59]} 27. Rdg1+ {[%clk 0:00:57.3]} 27... Kf6 {[%clk
0:01:52.3]} 28. Bxh7 {[%clk 0:00:55.3]} 28... Ne7 {[%clk 0:01:50.9]} 29. Rh4
{[%clk 0:00:49]} 29... Ke5 {[%clk 0:01:36.3]} 30. Rg7 {[%clk 0:00:46.2]} 30...
Rae8 {[%clk 0:01:36.2]} 31. Nb5 {[%clk 0:00:35.3]} 31... Ng8 {[%clk 0:01:22]}
32. Rh5+ {[%clk 0:00:30.1]} 32... Kf4 {[%clk 0:01:18]} 33. Nxc7 {[%clk
0:00:22.9]} 33... Nf6 {[%clk 0:00:40.7]} 34. Rf5+ {[%clk 0:00:22]} 34... Kxe4
{[%clk 0:00:41.1]} 35. Rxf6+ {[%clk 0:00:22.1]} 35... Kd4 {[%clk 0:00:41.4]} 36.
Rxf8 {[%clk 0:00:22.1]} 36... Re1+ {[%clk 0:00:40.9]} 37. Kc2 {[%clk 0:00:21.5]}
37... Re2+ {[%clk 0:00:41.3]} 38. Kd1 {[%clk 0:00:18.8]} 38... Rxf2 {[%clk
0:00:38.4]} 39. Rg4+ {[%clk 0:00:18.3]} 39... Kc5 {[%clk 0:00:37.3]} 40. Ne6+
{[%clk 0:00:12.7]} 40... Kxd5 {[%clk 0:00:31.7]} 41. Nf4+ {[%clk 0:00:11.9]}
41... Kc6 {[%clk 0:00:28.2]} 42. Rc8+ {[%clk 0:00:12.1]} 42... Kb5 {[%clk
0:00:28.2]} 43. Bd3 {[%clk 0:00:11.7]} 43... d5 {[%clk 0:00:28.3]} 44. Nxd5
{[%clk 0:00:10.4]} 44... Rd2+ {[%clk 0:00:28.6]} 45. Ke1 {[%clk 0:00:10.5]}
45... Rxd3 {[%clk 0:00:26.6]} 46. Rcxc4 {[%clk 0:00:09.8]} 46... Rxd5 {[%clk
0:00:26.9]} 47. Rb4+ {[%clk 0:00:09.5]} 47... Ka5 {[%clk 0:00:26.6]} 48. Rbd4
{[%clk 0:00:09]} 48... Rh5 {[%clk 0:00:25.5]} 49. Rh4 {[%clk 0:00:09]} 49...
Re5+ {[%clk 0:00:25.4]} 50. Kf2 {[%clk 0:00:09.6]} 50... Re2+ {[%clk 0:00:25.6]}
51. Kxf3 {[%clk 0:00:10.2]} 51... Rxb2 {[%clk 0:00:25.9]} 52. Rd5+ {[%clk
0:00:10.3]} 52... b5 {[%clk 0:00:25.7]} 53. h7 {[%clk 0:00:10.2]} 53... Rxa2
{[%clk 0:00:26]} 54. h8=Q {[%clk 0:00:10.2]} 54... Ra3+ {[%clk 0:00:26.7]} 55.
Ke2 {[%clk 0:00:09.7]} 55... Ra2+ {[%clk 0:00:26]} 56. Kd1 {[%clk 0:00:10]}
56... Rg2 {[%clk 0:00:24.4]} 57. Qd8+ {[%clk 0:00:10.1]} 57... Ka6 {[%clk
0:00:23.7]} 58. Rd6+ {[%clk 0:00:09.8]} 58... Kb7 {[%clk 0:00:23.8]} 59. Rh7+
{[%clk 0:00:09.6]} 59... Rg7 {[%clk 0:00:22.1]} 60. Rxg7# {[%clk 0:00:09.7]} 1-0

[Event "Late-Titled-Tuesday-Blitz-July-09-2024"]
[Site "Chess.com"]
[Date "2024.07.09"]
[Round "11"]
[White "vova-79"]
[Black "enriquebutti"]
[Result "1-0"]
[WhiteElo "2460"]
[BlackElo "2191"]
[TimeControl "180+1"]
[EndTime "16:05:39 PDT"]
[Termination "vova-79 won on time"]

1. d4 {[%clk 0:02:53.6]} 1... Nf6 {[%clk 0:02:58.9]} 2. c4 {[%clk 0:02:52.3]}
2... d6 {[%clk 0:02:58.4]} 3. Nf3 {[%clk 0:02:51.5]} 3... Nbd7 {[%clk
0:02:57.8]} 4. g3 {[%clk 0:02:51.2]} 4... e5 {[%clk 0:02:57.2]} 5. Nc3 {[%clk
0:02:51.8]} 5... Be7 {[%clk 0:02:56.4]} 6. Bg2 {[%clk 0:02:52.4]} 6... O-O
{[%clk 0:02:55.7]} 7. O-O {[%clk 0:02:53]} 7... c6 {[%clk 0:02:51.5]} 8. e4
{[%clk 0:02:53.5]} 8... Re8 {[%clk 0:02:46.6]} 9. h3 {[%clk 0:02:52.7]} 9... Qc7
{[%clk 0:02:46.1]} 10. Be3 {[%clk 0:02:51.9]} 10... Bf8 {[%clk 0:02:43.6]} 11.
Qc2 {[%clk 0:02:50.7]} 11... a6 {[%clk 0:02:37.9]} 12. Rac1 {[%clk 0:02:42.7]}
12... Rb8 {[%clk 0:02:36.3]} 13. Rfd1 {[%clk 0:02:37.7]} 13... b5 {[%clk
0:02:29.6]} 14. c5 {[%clk 0:02:07.5]} 14... dxc5 {[%clk 0:02:25.5]} 15. dxe5
{[%clk 0:02:05.9]} 15... Nxe5 {[%clk 0:02:16.2]} 16. Nxe5 {[%clk 0:02:05.8]}
16... Rxe5 {[%clk 0:02:15.5]} 17. Bf4 {[%clk 0:02:05.2]} 17... Nd7 {[%clk
0:02:14.8]} 18. b3 {[%clk 0:01:54.5]} 18... g5 {[%clk 0:02:07]} 19. Bxe5 {[%clk
0:01:52.7]} 19... Nxe5 {[%clk 0:02:04.8]} 20. Qd2 {[%clk 0:01:48.1]} 20... h6
{[%clk 0:01:52.7]} 21. f4 {[%clk 0:01:37]} 21... gxf4 {[%clk 0:01:51.7]} 22.
gxf4 {[%clk 0:01:37.6]} 22... Ng6 {[%clk 0:01:50.7]} 23. e5 {[%clk 0:01:37.8]}
23... Nh4 {[%clk 0:01:39.9]} 24. Ne4 {[%clk 0:01:34.3]} 24... Bf5 {[%clk
0:01:22]} 25. Nf6+ {[%clk 0:01:17.9]} 25... Kh8 {[%clk 0:01:20.4]} 26. Qf2
{[%clk 0:01:13.8]} 26... Ng6 {[%clk 0:01:08]} 27. Be4 {[%clk 0:01:05.4]} 27...
Qc8 {[%clk 0:01:04.9]} 28. Kh2 {[%clk 0:00:54.9]} 28... Be7 {[%clk 0:00:54]} 29.
Bxf5 {[%clk 0:00:41.8]} 29... Qxf5 {[%clk 0:00:51.3]} 30. Ng4 {[%clk 0:00:25.2]}
30... Nxf4 {[%clk 0:00:39.6]} 31. Rf1 {[%clk 0:00:19.5]} 31... Bg5 {[%clk
0:00:36]} 32. Rxc5 {[%clk 0:00:19.5]} 32... Rd8 {[%clk 0:00:26.1]} 33. e6 {[%clk
0:00:17.4]} 33... Qe4 {[%clk 0:00:20.1]} 34. exf7 {[%clk 0:00:15.9]} 34... Kg7
{[%clk 0:00:19.5]} 35. Qb2+ {[%clk 0:00:13.7]} 35... Kxf7 {[%clk 0:00:18.5]} 36.
Re5 {[%clk 0:00:08.1]} 36... Qd4 {[%clk 0:00:14]} 37. Qxd4 {[%clk 0:00:07.2]}
37... Rxd4 {[%clk 0:00:12.9]} 38. Rf2 {[%clk 0:00:07.9]} 38... Kg6 {[%clk
0:00:11]} 39. Rc5 {[%clk 0:00:06.3]} 39... Rd3 {[%clk 0:00:08.4]} 40. Ne5+
{[%clk 0:00:05.9]} 40... Kg7 {[%clk 0:00:05.9]} 41. Nxd3 {[%clk 0:00:06.8]}
41... Nxd3 {[%clk 0:00:05.7]} 42. Rfc2 {[%clk 0:00:04.6]} 42... Nxc5 {[%clk
0:00:04.7]} 43. Rxc5 {[%clk 0:00:05.5]} 1-0

[Event "Late-Titled-Tuesday-Blitz-July-09-2024"]
[Site "Chess.com"]
[Date "2024.07.09"]
[Round "11"]
[White "MetiForce"]
[Black "WildTricks"]
[Result "1-0"]
[WhiteElo "2908"]
[BlackElo "2724"]
[TimeControl "180+1"]
[EndTime "16:05:42 PDT"]
[Termination "MetiForce won on time"]

1. e4 {[%clk 0:02:54.6]} 1... c5 {[%clk 0:03:00.3]} 2. Nf3 {[%clk 0:02:50.7]}
2... d6 {[%clk 0:03:00.5]} 3. d4 {[%clk 0:02:50.6]} 3... cxd4 {[%clk 0:03:01.4]}
4. Nxd4 {[%clk 0:02:51.5]} 4... Nf6 {[%clk 0:03:01.8]} 5. Nc3 {[%clk 0:02:52]}
5... g6 {[%clk 0:03:01.2]} 6. Be3 {[%clk 0:02:48]} 6... Nc6 {[%clk 0:03:01.3]}
7. f3 {[%clk 0:02:45.3]} 7... h5 {[%clk 0:03:01.6]} 8. Qd2 {[%clk 0:02:36.5]}
8... Nxd4 {[%clk 0:03:01.3]} 9. Bxd4 {[%clk 0:02:31.1]} 9... Bh6 {[%clk
0:03:01.3]} 10. Be3 {[%clk 0:02:31.4]} 10... Bxe3 {[%clk 0:03:01.2]} 11. Qxe3
{[%clk 0:02:32.3]} 11... Be6 {[%clk 0:03:01.8]} 12. Bd3 {[%clk 0:02:31]} 12...
Qa5 {[%clk 0:03:00]} 13. O-O {[%clk 0:02:25.1]} 13... Rc8 {[%clk 0:02:59.8]} 14.
Ne2 {[%clk 0:02:21.6]} 14... Qc5 {[%clk 0:02:45]} 15. Nd4 {[%clk 0:02:20.9]}
15... Bd7 {[%clk 0:02:26.5]} 16. c3 {[%clk 0:02:20.7]} 16... e5 {[%clk
0:02:13.6]} 17. Nc2 {[%clk 0:02:20.8]} 17... d5 {[%clk 0:02:14]} 18. exd5 {[%clk
0:02:10.4]} 18... Nxd5 {[%clk 0:02:14.9]} 19. Qxc5 {[%clk 0:02:07.3]} 19... Rxc5
{[%clk 0:02:15.8]} 20. Rfe1 {[%clk 0:02:05.7]} 20... Nf4 {[%clk 0:02:06.8]} 21.
Be4 {[%clk 0:02:04.6]} 21... O-O {[%clk 0:01:47]} 22. Rad1 {[%clk 0:02:02.3]}
22... Be6 {[%clk 0:01:26.9]} 23. h4 {[%clk 0:01:39.1]} 23... Bxa2 {[%clk
0:01:13.1]} 24. Rd7 {[%clk 0:01:38]} 24... Rb8 {[%clk 0:00:47]} 25. g3 {[%clk
0:01:22.4]} 25... Be6 {[%clk 0:00:35.1]} 26. Rd2 {[%clk 0:01:12.3]} 26... Nd5
{[%clk 0:00:32.7]} 27. Bxd5 {[%clk 0:00:47.2]} 27... Rxd5 {[%clk 0:00:32.3]} 28.
Rxd5 {[%clk 0:00:46.9]} 28... Bxd5 {[%clk 0:00:33.2]} 29. Kf2 {[%clk 0:00:47.6]}
29... f6 {[%clk 0:00:32.8]} 30. Nb4 {[%clk 0:00:44.2]} 30... Bc4 {[%clk
0:00:28]} 31. Rd1 {[%clk 0:00:44]} 31... a5 {[%clk 0:00:28]} 32. Nd5 {[%clk
0:00:41.9]} 32... Kf7 {[%clk 0:00:12.9]} 33. Nb6 {[%clk 0:00:40.3]} 33... Be6
{[%clk 0:00:12.7]} 34. c4 {[%clk 0:00:37.3]} 34... Ke7 {[%clk 0:00:11.9]} 35.
Ke3 {[%clk 0:00:33.9]} 35... Rd8 {[%clk 0:00:10.8]} 36. Ra1 {[%clk 0:00:34.5]}
36... Rd4 {[%clk 0:00:09.4]} 37. b3 {[%clk 0:00:34.4]} 37... f5 {[%clk
0:00:09.6]} 38. Rxa5 {[%clk 0:00:33.8]} 38... f4+ {[%clk 0:00:09.7]} 39. gxf4
{[%clk 0:00:33.9]} 39... Rxf4 {[%clk 0:00:10.5]} 40. Rxe5 {[%clk 0:00:33.4]}
40... Rxh4 {[%clk 0:00:10.6]} 41. Na4 {[%clk 0:00:26.8]} 41... Kd6 {[%clk
0:00:08.8]} 42. Rb5 {[%clk 0:00:24.3]} 42... Bd7 {[%clk 0:00:08.3]} 43. Rd5+
{[%clk 0:00:21.2]} 43... Ke7 {[%clk 0:00:07.3]} 44. Nb6 {[%clk 0:00:13.4]} 44...
Bc6 {[%clk 0:00:07.2]} 45. Nc8+ {[%clk 0:00:13.6]} 45... Kf6 {[%clk 0:00:03.9]}
46. Rd6+ {[%clk 0:00:14]} 46... Kg5 {[%clk 0:00:03.4]} 47. Ne7 {[%clk
0:00:13.9]} 47... Rh3 {[%clk 0:00:02.9]} 48. Rxg6+ {[%clk 0:00:13.6]} 1-0